Cogmind - Beta 14 @@@ ROGUE MODE // 2024.09.09 @ 16:32:09 Player: Maulwurf Result: Destroyed by G-34 Mercenary with Small Laser Performance ------------- Evolutions (1) 500 Regions Visited (3) 600 Robots Destroyed (21) 105 Value Destroyed (688) 688 Prototype IDs (0) 0 Alien Tech Used (0) 0 Bonus (53) 53 TOTAL SCORE: 1946 Bonus ------- High Alert Combat Kills 53 Cogmind --------- Core Integrity 0/400 Matter 111/300 Energy 100/100 System Corruption 0% Temperature Cool (24) Movement Core (200) Ox3 Location -9/Storage Parts ------- > --- POWER (1) -------- (None) > --- PROPULSION (3) --- (None) > --- UTILITY (3) ------ Small Storage Unit Small Storage Unit > --- WEAPON (2) ------- (None) > --- INVENTORY (8) ---- Light Ion Engine Improved Aluminum Leg Light Armor Plating Beam Rifle Assault Rifle Light Assault Rifle Peak State ------------ > --- POWER ------------ Light Ion Engine > --- PROPULSION ------- Aluminum Leg Aluminum Leg Aluminum Leg > --- UTILITY ---------- Small Storage Unit Small Storage Unit Structural Scanner > --- WEAPON ----------- Grenade Launcher Grenade Launcher > --- INVENTORY -------- Light Ion Engine Light Armor Plating Medium Armor Plating Beam Rifle Assault Rifle Light Assault Rifle Grenade Launcher Grenade Launcher [Rating: 10] Favorites ----------- Power Light Ion Engine Engine Light Ion Engine Propulsion Aluminum Leg Leg Aluminum Leg Utility Small Storage Unit Device Structural Scanner Storage Small Storage Unit Protection Light Armor Plating Weapon Grenade Launcher Energy Gun Medium Laser Ballistic Gun Assault Rifle Launcher Grenade Launcher Build | -11 -10 -9 -9 ------- Run | Yrd Mat Mat Sto Slots Evolved 2 | . . 2 . Power . | . . . . Propulsion 1 | . . 1 . Utility 1 | . . 1 . Weapon . | . . . . Parts Attached 14 | 6 4 2 2 Power 1 | 1 . . . Engine 1 | 1 . . . Core . | . . . . Reactor . | . . . . Propulsion 3 | 2 . 1 . Treads . | . . . . Leg 3 | 2 . 1 . Wheel . | . . . . Hover . | . . . . Flight . | . . . . Utility 4 | 1 2 1 . Device 1 | . . 1 . Storage 2 | 1 1 . . Processor . | . . . . Hackware . | . . . . Protection 1 | . 1 . . Artifact . | . . . . Weapon 6 | 2 2 . 2 Energy Gun 1 | 1 . . . Energy Cannon . | . . . . Ballistic Gun 1 | 1 . . . Ballistic Cannon . | . . . . Launcher 4 | . 2 . 2 Special Weapon . | . . . . Impact Weapon . | . . . . Slashing Weapon . | . . . . Piercing Weapon . | . . . . Special Melee Weapon . | . . . . Unidentified Prototypes . | . . . . Parts Lost 9 | . . . 9 Power 1 | . . . 1 Propulsion 3 | . . . 3 Utility 1 | . . . 1 Weapon 4 | . . . 4 Highest Loss Streak 8 | . . . 8 To Critical Strikes . | . . . . Average Slot Usage (%) 91 | . 93 100 88 Engine 10 | . 14 11 7 Leg 29 | . 28 33 29 Device 5 | . . 11 9 Storage 20 | . 19 22 22 Protection 1 | . 2 . . Energy Gun 1 | . 3 . . Ballistic Gun 1 | . 3 . . Launcher 20 | . 21 22 19 Peak Build Rating 10 | 6 7 10 10 Average Rating 7 | 4 6 9 8 On Entrance 5 | . 6 7 10 Naked Turns . | . . . . Heaviest Build 20 | 12 19 20 20 Greatest Support 30 | 20 20 30 30 Greatest Overweight (x) 3 | 2 . . 3 Average Overweight (x) . | . . . . Largest Inventory Capacity 8 | 8 8 8 8 Average Capacity 7 | 7 8 8 8 Most Carried 8 | 6 8 8 8 Average Carried 6 | 2 6 7 7 Final Capacity 8 | 8 8 8 8 Final Carried 8 | 2 8 8 6 Class Distribution -------------------- 100% | Mutant Dominant Class ---------------- Mutant | -10/Materials Mutant | -9/Materials Mutant | -9/Storage Resources | -11 -10 -9 -9 ----------- Run | Yrd Mat Mat Sto Matter Collected 474 | 168 172 22 112 Remotely . | . . . . Salvage Created 431 | . 74 39 318 Parts 31 | . 6 1 24 Haulers Intercepted . | . . . . Recyclers Shooed 1 | . . . 1 Parts Field Recycled . | . . . . Retrieved Matter . | . . . . Parts Self-Destructed . | . . . . Prevented . | . . . . Kills | -11 -10 -9 -9 ------- Run | Yrd Mat Mat Sto Combat Hostiles Destroyed 18 | . 2 1 15 AOE 18 | . 2 1 15 Classes Destroyed 4 | . 2 . 2 Worker 3 | . 1 . 2 Swarmer 2 | . . . 2 Grunt 11 | . 2 1 8 Sentry 5 | . . . 5 Best Kill Streak 6 | . 3 1 6 Combat Bots Only 6 | . 2 1 6 Max Kills in Single Turn 2 | . 2 1 2 Gunslinging . | . . . . Exploded 2 | . 1 1 2 Melee . | . . . . Uniques/NPCs Destroyed . | . . . . Combat | -11 -10 -9 -9 -------- Run | Yrd Mat Mat Sto Hostile Shots Fired 76 | . 1 . 75 Missed 23 | . 1 . 22 Damage Taken 1188 | . . 5 1183 Core 407 | . . . 407 Absorbed by Shields . | . . . . Core Remaining (%) 100 | 100 100 . . Volleys Fired 22 | . 2 1 19 Largest 2 | . 2 2 2 Hottest 60 | . 60 60 60 Shots Fired 38 | . 4 2 32 Gun . | . . . . Cannon . | . . . . Launcher 38 | . 4 2 32 Special . | . . . . Kinetic . | . . . . Thermal . | . . . . Explosive 38 | . 4 2 32 Electromagnetic . | . . . . Robot Hit Streak 15 | . . 1 15 Robot Miss Streak 2 | . . . 2 Penetration Max . | . . . . Secondary Targets . | . . . . Shots Hit Robots 25 | . . 1 24 Core Hits 39 | . 5 1 33 Critical Kills . | . . . . Critical Parts Destroyed . | . . . . Critical Strikes . | . . . . Melee Attacks . | . . . . Impact . | . . . . Slashing . | . . . . Piercing . | . . . . Sneak Attacks . | . . . . Combat Hostiles . | . . . . Follow-up Attacks . | . . . . Damage Inflicted 1645 | . 117 48 1480 Guns . | . . . . Cannons . | . . . . Explosions 1636 | . 117 48 1471 Melee . | . . . . Ramming 9 | . . . 9 Kinetic . | . . . . Thermal . | . . . . Explosive 1636 | . 117 48 1471 Electromagnetic . | . . . . Impact . | . . . . Slashing . | . . . . Piercing . | . . . . Highest Corruption . | . . . . Average Corruption . | . . . . Corruption Purged . | . . . . Corruption Blocked . | . . . . Overload Shots . | . . . . Overflow Damage 136 | . . . 136 Projectiles . | . . . . Explosions 136 | . . . 136 Melee . | . . . . Knockbacks . | . . . . Impact . | . . . . Kinetic . | . . . . Secondary . | . . . . Self-Inflicted Damage 444 | . . 5 439 Shots 15 | . . 1 14 Rammed 3 | . . . 3 Targets Rammed 3 | . . . 3 Kicked . | . . . . Crushed . | . . . . Highest Temperature 22 | . 18 . 22 Average Temperature 6 | . 9 . 5 Received Heat Transfer 303 | . . . 303 Siege Activations . | . . . . Robots Corrupted . | . . . . Combat Hostiles . | . . . . Parts Fried . | . . . . Impact Corruptions . | . . . . Robots Melted . | . . . . Combat Hostiles . | . . . . Parts Melted . | . . . . Heat Transferred . | . . . . Parts Sabotaged . | . . . . Parts Stolen . | . . . . Parts Stripped . | . . . . Power Chain Reactions . | . . . . Alert | -11 -10 -9 -9 ------- Run | Yrd Mat Mat Sto Peak Influence 598 | . 89 88 598 Initial 37 | . . 37 37 Average 151 | . 45 53 293 Maximum Alert Level 2 | . . . 2 Low Security (%) 70 | 100 100 100 32 Level 1 15 | . . . 34 Level 2 14 | . . . 32 Level 3 . | . . . . Level 4 . | . . . . Level 5 . | . . . . High Security . | . . . . Max Security . | . . . . Squads Dispatched 7 | . 1 1 5 Investigation 2 | . 1 1 . Extermination . | . . . . Reinforcement 2 | . . . 2 Assault . | . . . . Garrison 3 | . . . 3 Intercept . | . . . . Searches Triggered . | . . . . Construction Impeded . | . . . . Haulers Reinforced . | . . . . Active Scanning Responses . | . . . . Cargo Convoy Interrupts . | . . . . Stealth | -11 -10 -9 -9 --------- Run | Yrd Mat Mat Sto Distress Signals 1 | . . . 1 Communications Jammed . | . . . . Distress Signals . | . . . . Times Spotted 25 | . 3 . 22 Peak Tracking Total 9 | . 2 . 9 Tactical Retreats 1 | . . . 1 Traps | -11 -10 -9 -9 ------- Run | Yrd Mat Mat Sto Traps Triggered 1 | . . . 1 Indirectly . | . . . . Trap Hack Attempts . | . . . . Triggered . | . . . . Disarmed . | . . . . Reprogrammed . | . . . . Reused . | . . . . Traps Extracted . | . . . . Installed . | . . . . Triggered . | . . . . Machines | -11 -10 -9 -9 ---------- Run | Yrd Mat Mat Sto Machines Disabled 4 | . . . 4 Max in Single Turn 2 | . . . 2 Machines Repaired . | . . . . Machines Dismantled . | . . . . Machines Sabotaged . | . . . . Overloaded Fab Kills . | . . . . Hacking | -11 -10 -9 -9 --------- Run | Yrd Mat Mat Sto Machines Accessed 6 | . 2 1 3 Terminals 6 | . 2 1 3 Fabricators . | . . . . Repair Stations . | . . . . Recycling Units . | . . . . Scanalyzers . | . . . . Garrison Access . | . . . . Total Hacks 18 | . 5 4 9 Successful 11 | . 2 3 6 Failed 7 | . 3 1 3 Catastrophic 1 | . 1 . . Database Lockouts . | . . . . Manual 8 | . 4 2 2 Terminals 18 | . 5 4 9 Fabricators . | . . . . Repair Stations . | . . . . Recycling Units . | . . . . Scanalyzers . | . . . . Garrison Access . | . . . . Terminal Hacks 11 | . 2 3 6 Record 8 | . 2 3 3 Open Door 1 | . . . 1 Emergency Access Points 1 | . . . 1 Alert Level 1 | . . . 1 Fabricator Hacks . | . . . . Repair Station Hacks . | . . . . Recycling Unit Hacks . | . . . . Scanalyzer . | . . . . Garrison Access Hacks . | . . . . Unauthorized Hacks . | . . . . Terminals . | . . . . Fabricators . | . . . . Repair Stations . | . . . . Recycling Units . | . . . . Scanalyzers . | . . . . Garrison Access . | . . . . Data Cores Recovered . | . . . . Used . | . . . . Hacking Detections 5 | . 2 1 2 Full Trace Events 2 | . 1 1 . Feedback Events . | . . . . Feedback Blocked . | . . . . Robot Schematics Acquired . | . . . . Robots Built . | . . . . Authchips . | . . . . Time . | . . . . Total Robot Build Rating . | . . . . Part Schematics Acquired . | . . . . Parts Built . | . . . . Authchips . | . . . . Time . | . . . . Total Part Build Rating . | . . . . Parts Repaired . | . . . . Time . | . . . . Parts Recycled . | . . . . Recycled Matter . | . . . . Retrieved Matter . | . . . . Retrieved Components . | . . . . Parts Scanalyzed . | . . . . Part Schematics Acquired . | . . . . Parts Damaged . | . . . . Bothacking | -11 -10 -9 -9 ------------ Run | Yrd Mat Mat Sto Used RIF Installer . | . . . . Robots Hacked . | . . . . Non-combat . | . . . . Combat . | . . . . Robot Hacks Applied . | . . . . Relay Couplers Released . | . . . . Fabnet Peak Effective % . | . . . . Robots Rewired . | . . . . Allies Hacked . | . . . . Hacks Repelled . | . . . . Allies | -11 -10 -9 -9 -------- Run | Yrd Mat Mat Sto Total Allies . | . . . . Largest Group . | . . . . Highest-Rated Group . | . . . . Highest-Rated Ally . | . . . . Total Orders . | . . . . Ally Attacks . | . . . . Total Damage . | . . . . Kills . | . . . . Allies Corrupted . | . . . . Allies Melted . | . . . . Intel | -11 -10 -9 -9 ------- Run | Yrd Mat Mat Sto Robot Analysis Total . | . . . . Derelict Logs Recovered . | . . . . Drone Launches . | . . . . Drone Recoveries . | . . . . Exploration | -11 -10 -9 -9 ------------- Run | Yrd Mat Mat Sto Turns Passed 580 | 58 216 50 256 Spaces Moved 391 | 32 163 36 160 Core 14 | 10 . . 4 Treads . | . . . . Legs 377 | 22 163 36 156 Wheels . | . . . . Hover . | . . . . Flight . | . . . . Fastest Speed 50 | 50 120 120 120 Average Speed 121 | 123 120 120 122 Slowest Speed 200 | 150 120 120 200 Overloaded Moves . | . . . . Propulsion Burnouts . | . . . . Robots Hopped . | . . . . Cave-ins Triggered . | . . . . Exploration Rate (%) 22 | 3 27 4 56 Regions Visited 3 Branch Regions 1 Pre-discovered Areas . | . . . . Known Exits Taken . | . . . . Unknown Exits Taken 3 | 1 1 1 . Scrap Searched . | . . . . Spaces Dug . | . . . . Terrain Destroyed 119 | . 12 16 91 Melee . | . . . . Projectile . | . . . . AOE 119 | . 12 16 91 Terrain Rammed . | . . . . Walls Destroyed . | . . . . Machines Disabled . | . . . . Actions | -11 -10 -9 -9 --------- Run | Yrd Mat Mat Sto Total 459 | 50 182 41 186 Wait 6 | 5 . 1 . Move 388 | 31 162 35 160 Hop . | . . . . Pick Up 20 | 8 9 2 1 Fast Attach . | . . . . Attach 14 | 6 4 2 2 Detach 3 | . 3 . . Swap . | . . . . Drop 3 | . 2 . 1 Fire 22 | . 2 1 19 Melee . | . . . . Ram 3 | . . . 3 Kick . | . . . . Crush . | . . . . Escape Stasis . | . . . . Rewire . | . . . . Trap . | . . . . Miscellaneous . | . . . . Route ------- -11/Scrapyard -10/Materials -9/Materials -9/Storage History --------- Turn | Location | Event 18 | -11/Scrapyard | Discovered new exit (range 15) 59 | -11/Scrapyard | Entered Materials 214 | -10/Materials | Discovered new exit (range 15) 275 | -10/Materials | Entered another Materials area 275 | -9/Materials | Evolved 2 slots: Propulsion x1, Utility x1 277 | -9/Materials | Discovered new exit (range 10) 316 | -9/Materials | Build established: Mutant 325 | -9/Materials | Entered Storage 562 | -9/Storage | Core integrity fell below 50% 576 | -9/Storage | Core integrity fell below 20% 581 | -9/Storage | Destroyed by G-34 Mercenary with Small Laser Last Messages --------------- 00551_ Destroyed Aluminum Leg. 00551_ Structural Scanner destroyed. 00551_ Destroyed Structural Scanner. 00551_ G-47 Trooper destroyed. 00553_ K-01 Serf collects debris. 00554_ Acquired 6 matter. 00555_ Grenade Launcher destroyed. 00555_ Critical hit (Burn: +37). 00556_ The unstable cave ceiling collapses. 00556_ K-01 Serf destroyed. 00557_ K-01 Serf collects debris. 00558_ R-06 Scavenger collects Wheel. 00560_ K-01 Serf destroyed. 00562_ Y-45 Defender destroyed. 00562_ Grenade Launcher destroyed. 00562_ Destroyed Grenade Launcher. 00567_ The unstable cave ceiling collapses. 00567_ Aluminum Leg destroyed. 00572_ Slammed into G-34 Mercenary. 00578_ Slammed into Y-45 Defender. Map ----- +----------------------------------------------------+ | | | | | | | | | | | | | | | | | | | | | | | ???????????????????????????????????????????????? | | ?????????????????????#######???????????????????? | | ?????????????????????#######???????????????????? | | ?????????????????????##= =##???????????????????? | | ?????????????????????##= ##???????????????????? | | ?????????????????????## ###??????????????????? | | ????????????????????### # ##?????????????????? | | ????????????????????###" "# #?????????????????? | | ???????????? ####### # ####??????????????? | | ????????????#+####""" % ####??????????????? | | ??????????? ###"T" #T#"??????????????? | | ??????????? Y "??????????????? | | ??????????? =g "??????????????? | | ??????????? ### ######"??????????????? | | ???????????? ###@########?????????????? | | ???????????? ###Y########?????????????? | | ???????????? # ^ !!! ###????????????? | | ???????????? ####### # """ ![! ##????????????? | | ???????????? ####### # """ ![ ###????????????? | | ???######### ###??## # """ ###????????????? | | ???#########+###??## + """ ##?????????????? | | ##?## ##?? + # """ ##?????????????? | | ##### #T?? # # ##?????????????? | | T#### """ """ ##??## # ##?????????????? | | # """ """ # ??## ############?????????????? | | !+ """ """ # ??## ########"""#?????????????? | | # # ??## ##???????????????????????? | | # # ## #####????????????????????? | | # [ ! ! ######/####### ??????????????????? | | ## ! ### ### ??????????????????? | | ### # # ### # ??????????????????? | | ### ##### # ### """ " # ??????????????????? | | ?## #######+### """ " [="""# ??????????????????? | | ?## #### # """ " G"# ??????????????????? | | ?## #### # """# ??????????????????? | | ?## #### # [ # ??????????????????? | | ### #### # ##??????????????????? | | ### #### ### ##??????????????????? | | ### + ????????????? | +----------------------------------------------------+ Best States ------------- Heat Dissipation 28 Energy Generation 10 Energy Capacity 125 Matter Stores 300 Matter Capacity 300 Sight Range 16 Terrain Scan Density 10 Armor Coverage 150 Evasion (%) 55 Item Schematics ----------------- None Robot Schematics ------------------ None Fabricated ------------ Nothing Alien Tech Used ----------------- None Achievements -------------- Dramatic Entrance Challenges ------------ None Game ------ Seed UltimateRecoilTelecube Manual? 0 Play Time 00:16:59 Cumulative 5.9 hours Start 2024.09.09 @ 16:01:50 End 2024.09.09 @ 16:32:09 Sessions 1 Manual Loads 0 Difficulty Rogue Special Mode None Game No. 16 Rogue 16 Adventurer 0 Explorer 0 Win Type - Total 0 Types 0/0/0/0/0/0/0/0/0 Lore% 8 Gallery% 7 Achievement% 12 Wizard Run 0 Options --------- Layout 0 ASCII 0 Keyboard 1 Movement Numpad Keybinds 0 Fullscreen 1 Font 18/SmallcapsGlow Map View 76x50 Zoom Use 0% Tactical HUD 1 Map Filters NONE Filters NONE Steam 1 RUN: c6b48ae2-24dd-473f-bf5e-7ec8f90daad6